[Event "December 19 Late 2023"]
[Site "https://www.chess.com"]
[Date "2023.12.19"]
[Round "9"]
[White "Krzywda, Andrzej"]
[Black "Janaszak, Dawid"]
[Result "0-1"]
[Board "61"]
[TimeControl "180+1"]
[WhiteFideId "1114565"]
[BlackFideId "1119206"]
[WhiteElo "2130"]
[BlackElo "2218"]
[WhiteTeam "POL"]
[BlackTeam "POL"]
[WhiteClock "0:00:03"]
[BlackClock "0:00:03"]

1. e4 {[%clk 0:02:33]}  c5 {[%clk 0:02:34]} 2. Nf3 {[%clk 0:02:32]}  Nc6 {[%clk 0:02:34]} 3. d4 {[%clk 0:02:33]}  cxd4 {[%clk 0:02:35]} 4. Nxd4 {[%clk 0:02:34]}  e5 {[%clk 0:02:35]} 5. Nb5 {[%clk 0:02:33]}  d6 {[%clk 0:02:36]} 6. N1c3 {[%clk 0:02:31]}  a6 {[%clk 0:02:32]} 7. Na3 {[%clk 0:02:31]}  Be6 {[%clk 0:02:32]} 8. Nc4 {[%clk 0:02:27]}  Rc8 {[%clk 0:02:29]} 9. Ne3 {[%clk 0:02:04]}  Nf6 {[%clk 0:02:28]} 10. Bd3 {[%clk 0:02:04]}  Be7 {[%clk 0:02:28]} 11. O-O {[%clk 0:02:04]}  O-O {[%clk 0:02:28]} 12. a3 {[%clk 0:02:04]}  b5 {[%clk 0:02:19]} 13. Re1 {[%clk 0:02:04]}  Nd4 {[%clk 0:02:17]} 14. Ncd5 {[%clk 0:02:00]}  Re8 {[%clk 0:02:00]} 15. c3 {[%clk 0:01:59]}  Nc6 {[%clk 0:01:59]} 16. Bc2 {[%clk 0:01:47]}  Bf8 {[%clk 0:01:57]} 17. Nxf6+ {[%clk 0:01:44]}  Qxf6 {[%clk 0:01:56]} 18. Nd5 {[%clk 0:01:44]}  Qg6 {[%clk 0:01:49]} 19. a4 {[%clk 0:01:32]}  Kh8 {[%clk 0:01:14]} 20. axb5 {[%clk 0:01:30]}  axb5 {[%clk 0:01:15]} 21. b4 {[%clk 0:01:30]}  Nb8 {[%clk 0:01:12]} 22. Bd2 {[%clk 0:01:21]}  Nd7 {[%clk 0:01:12]} 23. Ra5 {[%clk 0:01:11]}  Bxd5 {[%clk 0:01:13]} 24. exd5 {[%clk 0:01:11]}  e4 {[%clk 0:01:13]} 25. Rxb5 {[%clk 0:01:01]}  f5 {[%clk 0:01:13]} 26. Bf4 {[%clk 0:00:51]}  Rxc3 {[%clk 0:01:07]} 27. Rb7 {[%clk 0:00:51]}  Nf6 {[%clk 0:00:59]} 28. Ba4 {[%clk 0:00:51]}  Rec8 {[%clk 0:00:57]} 29. Bc6 {[%clk 0:00:50]}  Nh5 {[%clk 0:00:55]} 30. Qd2 {[%clk 0:00:44]}  Rd3 {[%clk 0:00:55]} 31. Qc1 {[%clk 0:00:44]}  h6 {[%clk 0:00:49]} 32. b5 {[%clk 0:00:42]}  Qg4 {[%clk 0:00:36]} 33. g3 {[%clk 0:00:32]}  Qh3 {[%clk 0:00:27]} 34. b6 {[%clk 0:00:20]}  Nf6 {[%clk 0:00:27]} 35. Bxh6 {[%clk 0:00:08]}  Ng4 {[%clk 0:00:25]} 36. Be3 {[%clk 0:00:04]}  Qxh2+ {[%clk 0:00:22]} 37. Kf1 {[%clk 0:00:04]}  Rxe3 {[%clk 0:00:20]} 38. Qxe3 {[%clk 0:00:03]}  Nxe3+ {[%clk 0:00:18]} 39. Rxe3 {[%clk 0:00:04]}  Ra8 {[%clk 0:00:17]} 40. Ra7 {[%clk 0:00:02]}  Rb8 {[%clk 0:00:16]} 41. b7 {[%clk 0:00:02]}  Qh1+ {[%clk 0:00:15]} 42. Ke2 {[%clk 0:00:03]}  Qh5+ {[%clk 0:00:10]} 43. Ke1 {[%clk 0:00:02]}  Qh1+ {[%clk 0:00:08]} 44. Kd2 {[%clk 0:00:03]}  f4 {[%clk 0:00:08]} 45. Rea3 {[%clk 0:00:03]}  e3+ {[%clk 0:00:08]} 46. fxe3 {[%clk 0:00:03]}  fxe3+ {[%clk 0:00:04]} 47. Kxe3 {[%clk 0:00:03]}  Qg1+ {[%clk 0:00:04]} 48. Kd2 {[%clk 0:00:03]}  Be7 {[%clk 0:00:04]} 49. Ra8 {[%clk 0:00:03]}  Bg5+ {[%clk 0:00:04]} 50. Kc2 {[%clk 0:00:02]}  Qc1+ {[%clk 0:00:04]} 51. Kb3 {[%clk 0:00:03]}  Qb1+ {[%clk 0:00:04]} 52. Kc4 {[%clk 0:00:03]}  Qc2+ {[%clk 0:00:04]} 53. Kb4 {[%clk 0:00:03]}  Bd2+ {[%clk 0:00:03]} 54. Kb5 {[%clk 0:00:03]}  Qc5+ {[%clk 0:00:03]} 55. Ka4 {[%clk 0:00:03]}  Qb4# {[%clk 0:00:03]} 0-1

[Event "December 19 Late 2023"]
[Site "https://www.chess.com"]
[Date "2023.12.19"]
[Round "9"]
[White "Sivakumar, Shaashwath"]
[Black "Zavgorodniy, Sergiy"]
[Result "1-0"]
[Board "62"]
[TimeControl "180+1"]
[WhiteFideId "30912156"]
[BlackFideId "14110148"]
[WhiteElo "2137"]
[BlackElo "2402"]
[WhiteTeam "USA"]
[BlackTeam "UKR"]
[WhiteClock "0:00:09"]
[BlackClock "0:00:37"]

1. d4 {[%clk 0:03:00]}  d5 {[%clk 0:02:59]} 2. c4 {[%clk 0:02:58]}  dxc4 {[%clk 0:03:00]} 3. Nf3 {[%clk 0:02:56]}  Nf6 {[%clk 0:03:00]} 4. e3 {[%clk 0:02:55]}  e6 {[%clk 0:03:00]} 5. Bxc4 {[%clk 0:02:55]}  a6 {[%clk 0:03:01]} 6. O-O {[%clk 0:02:49]}  b5 {[%clk 0:03:01]} 7. Bb3 {[%clk 0:02:47]}  Bb7 {[%clk 0:03:02]} 8. Qe2 {[%clk 0:02:39]}  Nbd7 {[%clk 0:03:01]} 9. a4 {[%clk 0:02:35]}  b4 {[%clk 0:03:01]} 10. Nbd2 {[%clk 0:02:35]}  c5 {[%clk 0:03:01]} 11. e4 {[%clk 0:02:27]}  cxd4 {[%clk 0:03:00]} 12. e5 {[%clk 0:02:25]}  Nd5 {[%clk 0:03:00]} 13. Ne4 {[%clk 0:02:12]}  Be7 {[%clk 0:03:00]} 14. h4 {[%clk 0:02:11]}  O-O {[%clk 0:02:55]} 15. Bg5 {[%clk 0:02:10]}  a5 {[%clk 0:02:43]} 16. Nd6 {[%clk 0:01:55]}  Ba6 {[%clk 0:02:40]} 17. Bc4 {[%clk 0:01:54]}  Bxc4 {[%clk 0:02:35]} 18. Nxc4 {[%clk 0:01:48]}  Nc5 {[%clk 0:02:18]} 19. Bxe7 {[%clk 0:00:34]}  Qxe7 {[%clk 0:02:13]} 20. Nxd4 {[%clk 0:00:33]}  Qxh4 {[%clk 0:02:09]} 21. Rad1 {[%clk 0:00:31]}  Nxa4 {[%clk 0:02:01]} 22. g3 {[%clk 0:00:30]}  Qh3 {[%clk 0:01:56]} 23. Qe4 {[%clk 0:00:16]}  Nc5 {[%clk 0:01:47]} 24. Qf3 {[%clk 0:00:16]}  a4 {[%clk 0:01:43]} 25. Nd6 {[%clk 0:00:15]}  a3 {[%clk 0:01:42]} 26. bxa3 {[%clk 0:00:14]}  Rxa3 {[%clk 0:01:41]} 27. Qe2 {[%clk 0:00:13]}  Nc3 {[%clk 0:01:35]} 28. Qc4 {[%clk 0:00:09]}  Nxd1 {[%clk 0:01:30]} 29. Rxd1 {[%clk 0:00:10]}  Na6 {[%clk 0:01:02]} 30. Nc6 {[%clk 0:00:08]}  b3 {[%clk 0:00:45]} 31. Ne7+ {[%clk 0:00:08]}  Kh8 {[%clk 0:00:45]} 32. Nxf7+ {[%clk 0:00:08]}  Rxf7 {[%clk 0:00:36]} 33. Rd8+ {[%clk 0:00:08]}  Rf8 {[%clk 0:00:37]} 34. Rxf8# {[%clk 0:00:09]} 1-0

[Event "December 19 Late 2023"]
[Site "https://www.chess.com"]
[Date "2023.12.19"]
[Round "9"]
[White "Chaika, Vitalii"]
[Black "Blanco Diez, David"]
[Result "0-1"]
[Board "64"]
[TimeControl "180+1"]
[WhiteFideId "14111802"]
[BlackFideId "32032927"]
[WhiteElo "2010"]
[BlackElo "2170"]
[WhiteTeam "UKR"]
[BlackTeam "ESP"]
[WhiteClock "0:00:00"]
[BlackClock "0:00:04"]

1. d4 {[%clk 0:02:53]}  Nf6 {[%clk 0:02:58]} 2. Bf4 {[%clk 0:02:53]}  e6 {[%clk 0:02:53]} 3. e3 {[%clk 0:02:53]}  h6 {[%clk 0:02:53]} 4. h3 {[%clk 0:02:47]}  d5 {[%clk 0:02:52]} 5. Nd2 {[%clk 0:02:46]}  Bd6 {[%clk 0:02:52]} 6. Ngf3 {[%clk 0:02:42]}  O-O {[%clk 0:02:47]} 7. Bd3 {[%clk 0:02:38]}  c5 {[%clk 0:02:46]} 8. c3 {[%clk 0:02:37]}  b6 {[%clk 0:02:46]} 9. Ne5 {[%clk 0:02:33]}  Qc7 {[%clk 0:02:40]} 10. Qf3 {[%clk 0:02:24]}  Nfd7 {[%clk 0:02:18]} 11. Qg3 {[%clk 0:02:12]}  Bxe5 {[%clk 0:01:50]} 12. dxe5 {[%clk 0:02:08]}  Kh8 {[%clk 0:01:50]} 13. Nf3 {[%clk 0:02:00]}  Ba6 {[%clk 0:01:50]} 14. Bc2 {[%clk 0:01:55]}  Nc6 {[%clk 0:01:44]} 15. Qh4 {[%clk 0:01:29]}  Ndxe5 {[%clk 0:00:14]} 16. Nxe5 {[%clk 0:01:27]}  Nxe5 {[%clk 0:00:13]} 17. Bxh6 {[%clk 0:01:27]}  Kg8 {[%clk 0:00:04]} 18. Bf4 {[%clk 0:01:13]}  f6 {[%clk 0:00:02]} 19. Qh7+ {[%clk 0:01:03]}  Kf7 {[%clk 0:00:02]} 20. Bg6+ {[%clk 0:01:02]}  Ke7 {[%clk 0:00:02]} 21. Qxg7+ {[%clk 0:01:02]}  Kd6 {[%clk 0:00:01]} 22. Qxc7+ {[%clk 0:00:22]}  Kxc7 {[%clk 0:00:02]} 23. O-O-O {[%clk 0:00:21]}  Kc6 {[%clk 0:00:02]} 24. e4 {[%clk 0:00:20]}  Nxg6 {[%clk 0:00:02]} 25. exd5+ {[%clk 0:00:18]}  exd5 {[%clk 0:00:03]} 26. Bg3 {[%clk 0:00:17]}  Rae8 {[%clk 0:00:02]} 27. Rhe1 {[%clk 0:00:16]}  Rxe1 {[%clk 0:00:01]} 28. Rxe1 {[%clk 0:00:17]}  Rf7 {[%clk 0:00:01]} 29. h4 {[%clk 0:00:15]}  Re7 {[%clk 0:00:02]} 30. Rxe7 {[%clk 0:00:13]}  Nxe7 {[%clk 0:00:02]} 31. h5 {[%clk 0:00:14]}  Bd3 {[%clk 0:00:03]} 32. h6 {[%clk 0:00:12]}  Bh7 {[%clk 0:00:03]} 33. Kd2 {[%clk 0:00:12]}  Nf5 {[%clk 0:00:03]} 34. Bf4 {[%clk 0:00:10]}  Kd7 {[%clk 0:00:03]} 35. g4 {[%clk 0:00:10]}  Nd6 {[%clk 0:00:02]} 36. Bg3 {[%clk 0:00:09]}  Ne4+ {[%clk 0:00:01]} 37. Ke3 {[%clk 0:00:08]}  Nxg3 {[%clk 0:00:02]} 38. fxg3 {[%clk 0:00:09]}  Ke6 {[%clk 0:00:03]} 39. Kf4 {[%clk 0:00:09]}  d4 {[%clk 0:00:01]} 40. cxd4 {[%clk 0:00:08]}  cxd4 {[%clk 0:00:02]} 41. Kf3 {[%clk 0:00:08]}  Ke5 {[%clk 0:00:02]} 42. b3 {[%clk 0:00:07]}  Be4+ {[%clk 0:00:02]} 43. Ke2 {[%clk 0:00:06]}  a5 {[%clk 0:00:03]} 44. a3 {[%clk 0:00:05]}  Bh7 {[%clk 0:00:02]} 45. b4 {[%clk 0:00:05]}  axb4 {[%clk 0:00:02]} 46. axb4 {[%clk 0:00:06]}  Kd5 {[%clk 0:00:03]} 47. Kd2 {[%clk 0:00:04]}  Kc4 {[%clk 0:00:03]} 48. Ke2 {[%clk 0:00:03]}  Kxb4 {[%clk 0:00:03]} 49. Kf3 {[%clk 0:00:03]}  Kc3 {[%clk 0:00:03]} 50. Kf4 {[%clk 0:00:01]}  d3 {[%clk 0:00:03]} 51. g5 {[%clk 0:00:01]}  fxg5+ {[%clk 0:00:04]} 52. Kxg5 {[%clk 0:00:01]}  d2 {[%clk 0:00:05]} 53. Kf6 {[%clk 0:00:02]}  d1=Q {[%clk 0:00:05]} 54. Kg7 {[%clk 0:00:03]}  Qd7+ {[%clk 0:00:05]} 55. Kf8 {[%clk 0:00:00]}  Bg6 {[%clk 0:00:04]} 0-1

[Event "December 19 Late 2023"]
[Site "https://www.chess.com"]
[Date "2023.12.19"]
[Round "9"]
[White "Vafin, Ayrat"]
[Black "Smith, Garrett L"]
[Result "1-0"]
[Board "70"]
[TimeControl "180+1"]
[WhiteFideId "4146530"]
[BlackFideId "2024829"]
[WhiteElo "2317"]
[BlackElo "2384"]
[WhiteTeam "RUS"]
[BlackTeam "USA"]
[WhiteClock "0:00:05"]
[BlackClock "0:00:08"]

1. Nf3 {[%clk 0:02:55]}  c5 {[%clk 0:03:00]} 2. g3 {[%clk 0:02:55]}  Nc6 {[%clk 0:03:00]} 3. d4 {[%clk 0:02:55]}  cxd4 {[%clk 0:03:00]} 4. Nxd4 {[%clk 0:02:56]}  e5 {[%clk 0:03:00]} 5. Nxc6 {[%clk 0:02:54]}  bxc6 {[%clk 0:02:59]} 6. Bg2 {[%clk 0:02:52]}  Nf6 {[%clk 0:02:59]} 7. c4 {[%clk 0:02:52]}  Bb4+ {[%clk 0:02:55]} 8. Bd2 {[%clk 0:02:51]}  Rb8 {[%clk 0:02:51]} 9. O-O {[%clk 0:02:51]}  O-O {[%clk 0:02:51]} 10. Nc3 {[%clk 0:02:46]}  Qc7 {[%clk 0:02:47]} 11. a3 {[%clk 0:02:38]}  Be7 {[%clk 0:02:41]} 12. b4 {[%clk 0:02:20]}  d6 {[%clk 0:02:38]} 13. Rc1 {[%clk 0:02:15]}  Be6 {[%clk 0:02:39]} 14. Qb3 {[%clk 0:02:07]}  Rfd8 {[%clk 0:02:32]} 15. Bg5 {[%clk 0:02:06]}  a5 {[%clk 0:02:27]} 16. Bxf6 {[%clk 0:02:03]}  Bxf6 {[%clk 0:02:26]} 17. Nd5 {[%clk 0:02:01]}  cxd5 {[%clk 0:02:19]} 18. cxd5 {[%clk 0:02:01]}  Bxd5 {[%clk 0:02:17]} 19. Bxd5 {[%clk 0:01:54]}  Qa7 {[%clk 0:02:13]} 20. b5 {[%clk 0:01:47]}  a4 {[%clk 0:02:12]} 21. Qc4 {[%clk 0:01:44]}  g6 {[%clk 0:02:11]} 22. Kg2 {[%clk 0:01:33]}  Kg7 {[%clk 0:02:10]} 23. Qc7 {[%clk 0:01:26]}  Rd7 {[%clk 0:02:03]} 24. Qxa7 {[%clk 0:01:12]}  Rxa7 {[%clk 0:02:04]} 25. Rb1 {[%clk 0:01:13]}  Bd8 {[%clk 0:01:59]} 26. Rfc1 {[%clk 0:01:01]}  Bb6 {[%clk 0:01:57]} 27. Rc6 {[%clk 0:00:49]}  Bc5 {[%clk 0:01:56]} 28. Rxc5 {[%clk 0:00:47]}  dxc5 {[%clk 0:01:55]} 29. b6 {[%clk 0:00:47]}  Rd7 {[%clk 0:01:54]} 30. e4 {[%clk 0:00:47]}  f5 {[%clk 0:01:46]} 31. Rb5 {[%clk 0:00:36]}  Kf6 {[%clk 0:01:43]} 32. b7 {[%clk 0:00:35]}  fxe4 {[%clk 0:01:32]} 33. Bxe4 {[%clk 0:00:35]}  Rc7 {[%clk 0:01:28]} 34. Rb6+ {[%clk 0:00:29]}  Ke7 {[%clk 0:01:28]} 35. Ra6 {[%clk 0:00:27]}  c4 {[%clk 0:00:56]} 36. Ra8 {[%clk 0:00:25]}  Rbxb7 {[%clk 0:00:56]} 37. Bxb7 {[%clk 0:00:24]}  Rxb7 {[%clk 0:00:57]} 38. Rxa4 {[%clk 0:00:24]}  Rc7 {[%clk 0:00:56]} 39. Rb4 {[%clk 0:00:18]}  c3 {[%clk 0:00:55]} 40. Rb1 {[%clk 0:00:17]}  Kd6 {[%clk 0:00:50]} 41. Kf3 {[%clk 0:00:17]}  Kc5 {[%clk 0:00:49]} 42. Ke3 {[%clk 0:00:18]}  Kc4 {[%clk 0:00:49]} 43. Rb4+ {[%clk 0:00:18]}  Kd5 {[%clk 0:00:47]} 44. Rb1 {[%clk 0:00:15]}  Ra7 {[%clk 0:00:46]} 45. Rb3 {[%clk 0:00:11]}  Kc4 {[%clk 0:00:41]} 46. Rb4+ {[%clk 0:00:11]}  Kd5 {[%clk 0:00:41]} 47. Rb3 {[%clk 0:00:09]}  Rc7 {[%clk 0:00:24]} 48. Rb5+ {[%clk 0:00:06]}  Kc4 {[%clk 0:00:21]} 49. Rb4+ {[%clk 0:00:06]}  Kc5 {[%clk 0:00:21]} 50. Kd3 {[%clk 0:00:07]}  Kd5 {[%clk 0:00:19]} 51. Kc2 {[%clk 0:00:07]}  e4 {[%clk 0:00:17]} 52. a4 {[%clk 0:00:07]}  g5 {[%clk 0:00:17]} 53. a5 {[%clk 0:00:07]}  Ra7 {[%clk 0:00:15]} 54. Ra4 {[%clk 0:00:06]}  g4 {[%clk 0:00:14]} 55. Kxc3 {[%clk 0:00:06]}  h5 {[%clk 0:00:13]} 56. a6 {[%clk 0:00:06]}  Ke5 {[%clk 0:00:12]} 57. Ra5+ {[%clk 0:00:05]}  Kd6 {[%clk 0:00:08]} 58. Kd4 {[%clk 0:00:05]} 1-0

[Event "December 19 Late 2023"]
[Site "https://www.chess.com"]
[Date "2023.12.19"]
[Round "9"]
[White "Rees, Ioan"]
[Black "Crispin Ferreras, Darvi Abraham"]
[Result "1/2-1/2"]
[Board "71"]
[TimeControl "180+1"]
[WhiteFideId "1801236"]
[BlackFideId "6402771"]
[WhiteElo "2270"]
[BlackElo "2149"]
[WhiteTeam "WLS"]
[BlackTeam "DOM"]
[WhiteClock "0:00:18"]
[BlackClock "0:00:18"]

1. e4 {[%clk 0:03:00]}  e6 {[%clk 0:02:59]} 2. d4 {[%clk 0:03:00]}  d5 {[%clk 0:02:56]} 3. e5 {[%clk 0:03:00]}  c5 {[%clk 0:02:46]} 4. c3 {[%clk 0:03:00]}  Qb6 {[%clk 0:02:46]} 5. Nf3 {[%clk 0:03:00]}  Bd7 {[%clk 0:02:45]} 6. Be2 {[%clk 0:02:58]}  cxd4 {[%clk 0:02:45]} 7. cxd4 {[%clk 0:02:58]}  Bb5 {[%clk 0:02:45]} 8. O-O {[%clk 0:02:57]}  Nc6 {[%clk 0:02:41]} 9. Nc3 {[%clk 0:02:53]}  Bxe2 {[%clk 0:02:41]} 10. Nxe2 {[%clk 0:02:52]}  Nge7 {[%clk 0:02:42]} 11. Be3 {[%clk 0:02:50]}  Nf5 {[%clk 0:02:42]} 12. Qd2 {[%clk 0:02:48]}  Bb4 {[%clk 0:02:36]} 13. Qd3 {[%clk 0:02:48]}  O-O {[%clk 0:02:34]} 14. g4 {[%clk 0:02:44]}  Nxe3 {[%clk 0:02:30]} 15. fxe3 {[%clk 0:02:45]}  f6 {[%clk 0:02:28]} 16. exf6 {[%clk 0:02:40]}  Rxf6 {[%clk 0:02:28]} 17. Ng5 {[%clk 0:02:41]}  Rh6 {[%clk 0:02:24]} 18. Rf7 {[%clk 0:02:32]}  Rf8 {[%clk 0:02:21]} 19. Raf1 {[%clk 0:02:26]}  Nd8 {[%clk 0:02:20]} 20. Rxf8+ {[%clk 0:02:25]}  Bxf8 {[%clk 0:02:20]} 21. Nxh7 {[%clk 0:01:50]}  Bd6 {[%clk 0:02:13]} 22. Ng5 {[%clk 0:01:37]}  Rxh2 {[%clk 0:01:57]} 23. Qg6 {[%clk 0:01:27]}  Qc6 {[%clk 0:01:22]} 24. Nxe6 {[%clk 0:00:56]}  Nxe6 {[%clk 0:01:07]} 25. Qxe6+ {[%clk 0:00:57]}  Kh8 {[%clk 0:01:01]} 26. Rf8+ {[%clk 0:00:47]}  Bxf8 {[%clk 0:01:00]} 27. Qxc6 {[%clk 0:00:48]}  bxc6 {[%clk 0:00:59]} 28. Kxh2 {[%clk 0:00:49]}  g6 {[%clk 0:00:54]} 29. Kg3 {[%clk 0:00:48]}  Bd6+ {[%clk 0:00:52]} 30. Kf3 {[%clk 0:00:48]}  Kg7 {[%clk 0:00:52]} 31. e4 {[%clk 0:00:48]}  dxe4+ {[%clk 0:00:51]} 32. Kxe4 {[%clk 0:00:49]}  Kf6 {[%clk 0:00:50]} 33. Nc3 {[%clk 0:00:31]}  Ke6 {[%clk 0:00:46]} 34. Ne2 {[%clk 0:00:23]}  Kf6 {[%clk 0:00:43]} 35. Nc3 {[%clk 0:00:21]}  Ke6 {[%clk 0:00:43]} 36. a4 {[%clk 0:00:19]}  a6 {[%clk 0:00:42]} 37. d5+ {[%clk 0:00:18]}  cxd5+ {[%clk 0:00:42]} 38. Nxd5 {[%clk 0:00:19]}  Be5 {[%clk 0:00:41]} 39. b4 {[%clk 0:00:19]}  Kd6 {[%clk 0:00:38]} 40. Ne3 {[%clk 0:00:16]}  Bc3 {[%clk 0:00:32]} 41. Nd5 {[%clk 0:00:15]}  Bd2 {[%clk 0:00:30]} 42. Nf4 {[%clk 0:00:14]}  g5 {[%clk 0:00:26]} 43. Nd5 {[%clk 0:00:15]}  Kc6 {[%clk 0:00:22]} 44. Ne3 {[%clk 0:00:15]}  Bxb4 {[%clk 0:00:22]} 45. Kf5 {[%clk 0:00:15]}  Bd2 {[%clk 0:00:21]} 46. Nc4 {[%clk 0:00:15]}  Bc1 {[%clk 0:00:21]} 47. Ne5+ {[%clk 0:00:13]}  Kc5 {[%clk 0:00:21]} 48. Nf7 {[%clk 0:00:14]}  Kb4 {[%clk 0:00:20]} 49. Nxg5 {[%clk 0:00:14]}  Kxa4 {[%clk 0:00:20]} 50. Ne6 {[%clk 0:00:15]}  Kb3 {[%clk 0:00:21]} 51. g5 {[%clk 0:00:14]}  a5 {[%clk 0:00:20]} 52. g6 {[%clk 0:00:14]}  Bb2 {[%clk 0:00:20]} 53. Ke4 {[%clk 0:00:14]}  Bf6 {[%clk 0:00:18]} 54. Kd3 {[%clk 0:00:13]}  a4 {[%clk 0:00:18]} 55. Nc5+ {[%clk 0:00:13]}  Ka3 {[%clk 0:00:18]} 56. Nxa4 {[%clk 0:00:14]}  Kxa4 {[%clk 0:00:18]} 57. Ke4 {[%clk 0:00:15]}  Kb5 {[%clk 0:00:18]} 58. Kf5 {[%clk 0:00:16]}  Bd4 {[%clk 0:00:18]} 59. Ke6 {[%clk 0:00:17]}  Kc5 {[%clk 0:00:19]} 60. Kf7 {[%clk 0:00:18]}  Be5 {[%clk 0:00:19]} 61. g7 {[%clk 0:00:18]}  Bxg7 {[%clk 0:00:18]} 1/2-1/2

[Event "December 19 Late 2023"]
[Site "https://www.chess.com"]
[Date "2023.12.19"]
[Round "9"]
[White "Osmak, Yuliia"]
[Black "Ardila, Oscar Humberto"]
[Result "1-0"]
[Board "72"]
[TimeControl "180+1"]
[WhiteFideId "14101602"]
[BlackFideId "4404742"]
[WhiteElo "2303"]
[BlackElo "1915"]
[WhiteTeam "UKR"]
[BlackTeam "COL"]
[WhiteClock "0:00:08"]
[BlackClock "0:00:00"]

1. e4 {[%clk 0:02:50]}  e5 {[%clk 0:02:59]} 2. Nf3 {[%clk 0:02:45]}  Nf6 {[%clk 0:02:58]} 3. Nc3 {[%clk 0:02:45]}  Nc6 {[%clk 0:02:58]} 4. Bb5 {[%clk 0:02:44]}  Bb4 {[%clk 0:02:57]} 5. O-O {[%clk 0:02:44]}  O-O {[%clk 0:02:56]} 6. Bxc6 {[%clk 0:02:44]}  bxc6 {[%clk 0:02:54]} 7. Nxe5 {[%clk 0:02:43]}  Bxc3 {[%clk 0:02:44]} 8. dxc3 {[%clk 0:02:43]}  Nxe4 {[%clk 0:02:45]} 9. Bf4 {[%clk 0:02:33]}  Re8 {[%clk 0:02:42]} 10. Nd3 {[%clk 0:02:32]}  d6 {[%clk 0:02:37]} 11. Re1 {[%clk 0:02:31]}  h6 {[%clk 0:02:31]} 12. Qf3 {[%clk 0:02:29]}  d5 {[%clk 0:02:22]} 13. h3 {[%clk 0:02:03]}  Qf6 {[%clk 0:02:18]} 14. Bxc7 {[%clk 0:01:50]}  Qxf3 {[%clk 0:02:11]} 15. gxf3 {[%clk 0:01:51]}  Nf6 {[%clk 0:02:11]} 16. Kg2 {[%clk 0:01:47]}  Bf5 {[%clk 0:02:09]} 17. Be5 {[%clk 0:01:41]}  Nd7 {[%clk 0:02:08]} 18. Bg3 {[%clk 0:01:35]}  f6 {[%clk 0:02:05]} 19. Re3 {[%clk 0:01:31]}  Kf7 {[%clk 0:02:03]} 20. Rae1 {[%clk 0:01:31]}  Nb6 {[%clk 0:02:02]} 21. b3 {[%clk 0:01:29]}  Nd7 {[%clk 0:01:55]} 22. Bd6 {[%clk 0:01:24]}  Re6 {[%clk 0:01:40]} 23. Rxe6 {[%clk 0:01:20]}  Bxe6 {[%clk 0:01:40]} 24. Bc5 {[%clk 0:01:04]}  a5 {[%clk 0:01:28]} 25. a4 {[%clk 0:01:03]}  Re8 {[%clk 0:01:23]} 26. Bd6 {[%clk 0:00:59]}  g5 {[%clk 0:01:22]} 27. Bc7 {[%clk 0:00:58]}  Ra8 {[%clk 0:01:18]} 28. Bd6 {[%clk 0:00:48]}  Re8 {[%clk 0:01:10]} 29. Re3 {[%clk 0:00:43]}  Rd8 {[%clk 0:01:00]} 30. Bc7 {[%clk 0:00:38]}  Ra8 {[%clk 0:00:59]} 31. f4 {[%clk 0:00:36]}  Rg8 {[%clk 0:00:40]} 32. fxg5 {[%clk 0:00:35]}  Rxg5+ {[%clk 0:00:37]} 33. Kh2 {[%clk 0:00:31]}  Rf5 {[%clk 0:00:34]} 34. f4 {[%clk 0:00:30]}  Nf8 {[%clk 0:00:28]} 35. Rf3 {[%clk 0:00:24]}  Ng6 {[%clk 0:00:19]} 36. Bxa5 {[%clk 0:00:23]}  Nh4 {[%clk 0:00:17]} 37. Rf2 {[%clk 0:00:23]}  d4 {[%clk 0:00:16]} 38. Bb4 {[%clk 0:00:19]}  dxc3 {[%clk 0:00:16]} 39. Bxc3 {[%clk 0:00:20]}  Bd5 {[%clk 0:00:16]} 40. Kg3 {[%clk 0:00:18]}  Ng6 {[%clk 0:00:14]} 41. a5 {[%clk 0:00:17]}  Be4 {[%clk 0:00:05]} 42. a6 {[%clk 0:00:16]}  c5 {[%clk 0:00:06]} 43. a7 {[%clk 0:00:15]}  Rd5 {[%clk 0:00:05]} 44. Kh2 {[%clk 0:00:11]}  Rd7 {[%clk 0:00:04]} 45. Nxc5 {[%clk 0:00:11]}  Rxa7 {[%clk 0:00:03]} 46. Nxe4 {[%clk 0:00:11]}  Ne7 {[%clk 0:00:03]} 47. Ng3 {[%clk 0:00:11]}  Nd5 {[%clk 0:00:02]} 48. Bd4 {[%clk 0:00:11]}  Ra2 {[%clk 0:00:03]} 49. c4 {[%clk 0:00:10]}  Nb4 {[%clk 0:00:01]} 50. Rxa2 {[%clk 0:00:08]}  Nxa2 {[%clk 0:00:02]} 51. Bc5 {[%clk 0:00:08]}  Ke6 {[%clk 0:00:02]} 52. b4 {[%clk 0:00:08]}  Nc3 {[%clk 0:00:02]} 53. b5 {[%clk 0:00:08]}  Na4 {[%clk 0:00:00]} 54. Bg1 {[%clk 0:00:08]} 1-0

[Event "December 19 Late 2023"]
[Site "https://www.chess.com"]
[Date "2023.12.19"]
[Round "9"]
[White "Perea Fruet, Lorenzo"]
[Black "Gao, Raymond"]
[Result "1-0"]
[Board "74"]
[TimeControl "180+1"]
[WhiteFideId "24595870"]
[BlackFideId "2629429"]
[WhiteElo "2268"]
[BlackElo "1953"]
[WhiteTeam "ESP"]
[BlackTeam "CAN"]
[WhiteClock "0:02:28"]
[BlackClock "0:02:23"]

1. f4 {[%clk 0:02:50]}  d5 {[%clk 0:02:57]} 2. Nf3 {[%clk 0:02:49]}  Nf6 {[%clk 0:02:57]} 3. d3 {[%clk 0:02:50]}  Bg4 {[%clk 0:02:56]} 4. Nbd2 {[%clk 0:02:49]}  g6 {[%clk 0:02:54]} 5. h3 {[%clk 0:02:49]}  Bxf3 {[%clk 0:02:54]} 6. Nxf3 {[%clk 0:02:50]}  Bg7 {[%clk 0:02:54]} 7. g4 {[%clk 0:02:50]}  c5 {[%clk 0:02:51]} 8. Bg2 {[%clk 0:02:51]}  Nc6 {[%clk 0:02:52]} 9. O-O {[%clk 0:02:51]}  O-O {[%clk 0:02:51]} 10. c3 {[%clk 0:02:52]}  Qc7 {[%clk 0:02:49]} 11. Qe1 {[%clk 0:02:51]}  e5 {[%clk 0:02:49]} 12. f5 {[%clk 0:02:51]}  e4 {[%clk 0:02:49]} 13. dxe4 {[%clk 0:02:37]}  dxe4 {[%clk 0:02:48]} 14. Nd2 {[%clk 0:02:37]}  Rfe8 {[%clk 0:02:43]} 15. g5 {[%clk 0:02:34]}  Nh5 {[%clk 0:02:39]} 16. f6 {[%clk 0:02:34]}  Bf8 {[%clk 0:02:38]} 17. Nxe4 {[%clk 0:02:31]}  Rxe4 {[%clk 0:02:37]} 18. Bxe4 {[%clk 0:02:30]}  Ng3 {[%clk 0:02:37]} 19. Bf4 {[%clk 0:02:29]}  Bd6 {[%clk 0:02:23]} 20. Qxg3 {[%clk 0:02:28]} 1-0